[Event "Baku Open 2024"]
[Site "Baku"]
[Date "2024.07.06"]
[Round "8.6"]
[White "Assaubayeva, Bibisara"]
[Black "Stribuk, Artiom"]
[Result "1-0"]
[ECO "D85"]
[WhiteElo "2472"]
[BlackElo "2422"]
[Annotator "TA"]
[PlyCount "99"]
[EventDate "2024.06.29"]
[EventType "swiss"]
[EventCountry "AZE"]
[SourceTitle "playchess.com"]
[Source "ChessBase"]
[SourceQuality "1"]
[TimeControl "5400+30"]

{[%evp 19,99,0,0,0,0,0,0,0,0,0,0,0,0,0,0,0,0,0,0,-28,0,0,4,-19,-12,-14,-8,-8,-8,-9,0,-22,-16,-8,0,-97,-91,-81,-95,-72,-71,-85,-67,-79,-16,-15,-17,-23,-25,-16,-15,-32,0,0,0,0,0,0,0,-44,4133,4566,4662,4662,4148,4148,4133,4141,5727,5741,5753,5771,4919,6655,6655,5390,6655,6655,6655,450,5497,5391]} 1. d4 {[%emt 0:00:07]} Nf6 {[%emt 0:00:09]} 2. c4 {[%emt 0:00:08]} g6 {[%emt 0:00:09]} 3. Nc3 {[%emt 0:00:40]} d5 {[%emt 0:00:09]} 4. cxd5 {[%emt 0:00:38]} Nxd5 {[%emt 0:00:07]} 5. e4 {[%emt 0:00:24]} Nxc3 {[%emt 0:00:06]} 6. bxc3 {[%emt 0:00:04]} Bg7 {[%emt 0:00:08]} 7. Nf3 {[%emt 0:00:18]} c5 {[%emt 0:00:09]} 8. Bb5+ {[%emt 0:00:49]} Nc6 {[%emt 0:00:10]} 9. O-O {[%emt 0:00:12]} O-O {[%emt 0:00:10]} 10. Bxc6 {[%emt 0:00:08]} bxc6 {[%emt 0:00:06]} 11. Qc2 {[%emt 0:00:05]} cxd4 {[%emt 0:00:19]} 12. cxd4 {[%emt 0:00:28][%cal Oc1e3]} Bg4 {[%emt 0:00:06]} 13. Ne5 {[%emt 0:00:06] The position is equal.} Qxd4 {[%emt 0:00:06]} 14. Bb2 {[%emt 0:00:05][%cal Bc1b2,Bb2e5,Be5c3][%mdl 32]} Qb6 {[%emt 0:00:08]} 15. Rab1 {[%emt 0:00:04]} Bxe5 {[%emt 0:00:08]} 16. Bxe5 {[%emt 0:00:05]} Qa5 {[%emt 0:00:07]} 17. Bc3 {[%emt 0:00:06]} Qc5 {[%emt 0:00:06]} 18. h3 {[%emt 0:00:06]} Be6 {[%emt 0:00:06]} 19. Kh2 {[%emt 0:00:04]} Rab8 {[%emt 0:01:31]} 20. Rbc1 {[%emt 0:00:08]} Qc4 {[%emt 0:00:05]} 21. f4 {[%emt 0:00:32][%cal Bf2f4,Bf4f5][%mdl 32] And now f5 would win. White is weak on the light squares} (21. a3 {simplifies} f6 22. Bb4 Qxc2 23. Rxc2 Kf7 24. Rxc6 Rfc8 25. Rfc1) 21... Qxa2 {[%emt 0:00:08]} 22. Qd1 $1 {[%emt 0:00:06]} Rbd8 {[%emt 0:00:04]} 23. Qe1 {[%emt 0:01:57] Hoping for f5.} Rd3 {[%emt 0:00:06]} 24. f5 {[%emt 0:09:14]} Bc8 {[%emt 0:00:05]} 25. Qh4 {[%emt 0:15:12]} f6 {[%emt 0:07:06]} 26. Rf2 {[%emt 0:05:01]} Qf7 {[%emt 0:20:26]} 27. Qf4 {[%emt 0:07:53]} (27. Bb2 $11 {keeps the balance.}) 27... g5 $17 {[%emt 0:09:45]} 28. Qg4 {[%emt 0:05:34]} h5 {[%emt 0:05:08]} 29. Qe2 {[%emt 0:00:17] [#]} Ba6 {[%emt 0:00:26][%cal Bc8a6,Ba6d3,Bd3f5][%mdl 32]} 30. Qe1 {[%emt 0:05:20]} g4 {[%emt 0:09:54] White must now prevent ...g3+.} 31. Rd2 {[%emt 0:01:41] [#]} g3+ {[%emt 0:17:25]} (31... Rfd8 $1 $17 32. e5 Rxd2 33. Bxd2 Rd5) 32. Kh1 $11 {[%emt 0:01:31] Rxd3 is the strong threat.} Rfd8 {[%emt 0:00:31]} 33. e5 {[%emt 0:05:59]} h4 {[%emt 0:07:14]} 34. Rxd3 {[%emt 0:04:20]} Bxd3 {[%emt 0:01:37]} 35. Qd1 {[%emt 0:06:11]} Qg7 {[%emt 0:01:32]} 36. exf6 {[%emt 0:08:03]} exf6 {[%emt 0:00:02]} 37. Ba5 {[%emt 0:03:06][%csl LRc6,LRd8]} Rd4 {[%emt 0:12:11]} 38. Rxc6 {[%emt 0:22:48]} Qb7 {[%emt 0:06:51] Prevents Rc8+.} (38... Bxf5 $2 39. Qxd4 Qd7 40. Qc4+ (40. Qxh4 $2 Qd1+) 40... Qf7 41. Qxh4 $18) (38... Qd7 $5 39. Rc7 $8 (39. Rxf6 $2 Bxf5 40. Qb3+ Kg7 $19) 39... Bc2 $11 (39... Qxf5 $2 40. Qb3+ Qd5 41. Qb8+ Qd8 42. Rc8 $18)) 39. Rc7 {[%emt 0:00:00]} (39. Rxf6 Qb1 40. Qxb1 Bxb1 $17) 39... Bxf5 $2 {[%emt 0:01:47][%mdl 8192] This move loses the game for Black.} (39... Qb8 $15) 40. Qxd4 $18 {[%emt 0:00:00][%cal Rd4d8] White is clearly winning.} Qb1+ {[%emt 0:00:44]} 41. Qg1 {[%emt 0:00:00]} Qd3 {[%emt 0:01:46]} 42. Qc1 {[%emt 0:00:00]} Be6 {[%emt 0:01:00]} 43. Bc3 {[%emt 0:00:00]} Qf5 {[%emt 0:01:14]} 44. Qd1 {[%emt 0:00:00]} (44. Rxa7 Bd5) 44... Bd5 {[%emt 0:00:45]} 45. Qg4+ {[%emt 0:00:00]} (45. Rxa7 $2 {leads to mate.} Qxh3+ 46. Kg1 Qxg2#) 45... Qxg4 {[%emt 0:00:06]} 46. hxg4 {[%emt 0:00:00]} h3 {[%emt 0:00:09]} 47. Be1 {[%emt 0:00:00]} (47. Bxf6 Bxg2+ 48. Kg1 Be4 49. Rg7+ Kf8) 47... Bxg2+ {[%emt 0:00:39]} 48. Kg1 {[%emt 0:00:00]} Bf3 {[%emt 0:00:13]} 49. Bxg3 {[%emt 0:00:00]} Bxg4 {[%emt 0:00:04]} (49... a6 $142 50. Rc4 (50. Kh2 Bxg4 51. Rc6 Kf7 $18) 50... Kg7) 50. Rxa7 {[%emt 0:00:00] Weighted Error Value: White=0.10 (very precise) /Black=0.08 (flawless) .  Loses game:     	---       	Black=1      Mistake:       	White=1     	Black=1      Inaccurate:     	White=2     	Black=2      OK:         	White=16    	Black=15     Best:        	White=2     	Black=2      Strong:       	White=1     	---} 1-0

[Event "Baku Open 2024"]
[Site "Baku"]
[Date "2024.07.06"]
[Round "8.7"]
[White "Mamedov, Edgar"]
[Black "Babazada, Khazar"]
[Result "1/2-1/2"]
[ECO "E68"]
[WhiteElo "2410"]
[BlackElo "2468"]
[Annotator "TA"]
[PlyCount "115"]
[EventDate "2024.06.29"]
[EventType "swiss"]
[EventCountry "AZE"]
[SourceTitle "playchess.com"]
[Source "ChessBase"]
[SourceQuality "1"]
[TimeControl "5400+30"]

{[%evp 36,115,69,59,68,0,76,60,57,56,59,56,45,45,52,48,46,-14,-14,-19,0,0,0,-15,0,-28,0,0,0,0,0,0,0,-25,-26,-67,-1,-122,-129,-130,-150,-110,-130,-166,-17,-118,-109,-152,-104,-108,-95,-100,-18,-22,-29,-127,0,0,0,0,0,-8,-8,-8,-8,-8,0,0,0,0,0,0,0,0,0,0,0,0,0,0,0,0]} 1. d4 {[%emt 1:31:00]} Nf6 {[%emt 0:03:29]} 2. c4 {[%emt 0:00:00]} g6 {[%emt 0:00:03]} 3. g3 {[%emt 0:00:00]} Bg7 {[%emt 0:01:00]} 4. Bg2 {[%emt 0:00:00]} O-O {[%emt 0:03:35]} 5. Nc3 {[%emt 0:00:00]} d6 {[%emt 0:00:05]} 6. Nf3 {[%emt 0:00:00]} Nbd7 {[%emt 0:00:50]} 7. O-O {[%emt 0:00:00]} e5 {[%emt 0:00:30]} 8. e4 {[%emt 0:00:00]} exd4 {[%emt 0:01:29]} 9. Nxd4 {[%emt 0:00:00]} Re8 {[%emt 0:00:02]} 10. h3 {[%emt 0:00:00]} Nc5 {[%emt 0:02:28]} 11. Re1 {[%emt 0:00:00]} h6 {[%emt 0:00:11]} 12. Rb1 {[%emt 0:00:00]} c6 {[%emt 0:03:04] E68: King's Indian: Fianchetto: 6...Nbd7 7 0-0 e5 8 e4.} 13. Bf4 {[%emt 0:00:00]} Nh5 {[%emt 0:11:27]} 14. Be3 {[%emt 0:00:00]} Nf6 $146 {[%emt 0:00:07]} ({Predecessor:} 14... Ne6 15. Nxe6 Bxe6 16. Qd3 f5 17. Bd4 Nf6 18. Rbd1 fxe4 19. Nxe4 Bf5 20. Nxf6+ Bxf6 {1-0 Seuffert,G (2085)-Ledfuss,G (1930) Regionalliga NW 9596 1995}) 15. Qc2 {[%emt 0:00:00]} a5 {[%emt 0:01:50]} 16. Rbd1 {[%emt 0:00:00]} Nfd7 {[%emt 0:03:44]} 17. b3 {[%emt 0:00:00]} Qb6 {[%emt 0:05:40]} 18. Nde2 {[%emt 0:00:00]} Qb4 {[%emt 0:05:44]} 19. Bd2 {[%emt 0:00:00]} (19. Rxd6 $6 Nxe4 $11) 19... Qb6 {[%emt 0:00:53]} 20. Be3 {[%emt 0:00:00]} Qb4 $1 {[%emt 0:00:21]} 21. Bd4 {[%emt 0:00:00]} (21. Rxd6 $6 Nxe4 $11) 21... a4 {[%emt 0:05:49]} 22. Bxg7 {[%emt 0:00:00]} Kxg7 {[%emt 0:02:36]} 23. Nd4 {[%emt 0:00:00]} (23. Rxd6 axb3 24. axb3 Ra3 $17) 23... axb3 {[%emt 0:06:10]} 24. axb3 {[%emt 0:00:00]} Ne6 {[%emt 0:01:29]} 25. Nde2 {[%emt 0:00:00]} h5 {[%emt 0:09:25]} 26. h4 {[%emt 0:00:00]} (26. f4 $14) 26... Ne5 {[%emt 0:01:07]} 27. Rd2 {[%emt 0:00:54]} Ra3 {[%emt 0:02:28]} (27... g5 {keeps more tension.} 28. Na2 Qc5 29. hxg5 Rh8) 28. Rb1 {[%emt 0:00:45]} Kg8 {[%emt 0:01:03]} 29. Na2 {[%emt 0:05:56]} Qa5 {[%emt 0:01:23]} 30. Nac1 {[%emt 0:00:29]} Rd8 {[%emt 0:04:24]} 31. Qb2 {[%emt 0:00:52]} Qa7 {[%emt 0:00:39]} 32. Qc3 {[%emt 0:02:17]} Nc5 {[%emt 0:04:38]} 33. Nd4 {[%emt 0:01:35]} Be6 {[%emt 0:00:35]} 34. Nxe6 {[%emt 0:01:08]} Nxe6 {[%emt 0:00:14]} 35. Ne2 {[%emt 0:00:44]} Qc5 {[%emt 0:00:49]} ({Better is} 35... Ra2 $15) 36. Rbd1 {[%emt 0:00:27]} (36. Bh3 $11) 36... b5 $17 {[%emt 0:01:05]} 37. cxb5 {[%emt 0:01:53]} Qxc3 {[%emt 0:00:20]} ({Don't play} 37... cxb5 $6 38. Qxc5 Nxc5 39. b4 $11) ({Of course not} 37... Qxb5 $6 38. Nc1 $11) 38. Nxc3 {[%emt 0:00:05]} Rxb3 {[%emt 0:00:02]} 39. Rc2 {[%emt 0:01:07]} c5 {[%emt 0:00:34]} (39... cxb5 $19 {Threatens to win with ...Rc8.} 40. Nd5 Rb8) 40. Ne2 {[%emt 0:00:43]} (40. Rb1 $11 c4 41. Rd1) 40... Rxb5 $17 {[%emt 0:01:07]} 41. Rcd2 {[%emt 0:00:08]} Nc4 {[%emt 0:03:44]} (41... c4 $142 42. f4 Nd3) 42. Rc2 $17 {[%emt 0:00:03]} Rb4 {[%emt 0:00:21]} 43. Bh3 {[%emt 0:00:09]} Re8 {[%emt 0:04:22]} (43... Nb2 $17 44. Re1 Nd3) 44. Bxe6 $1 $11 {[%emt 0:00:26]} fxe6 {[%emt 0:05:20]} 45. Rc3 {[%emt 0:00:13] [#]} (45. Nf4 $11 {remains equal.}) 45... d5 {[%emt 0:00:54]} ({Black should play} 45... Reb8 $1 $17 {[%mdl 512]} 46. Kg2 (46. Nc1 e5) 46... Ra4) 46. exd5 $11 {[%emt 0:01:15]} exd5 {[%emt 0:00:01]} 47. Nf4 {[%emt 0:00:18]} d4 {[%emt 0:00:07]} 48. Rcc1 {[%emt 0:01:07]} Nb2 {[%emt 0:04:14]} 49. Rd2 {[%emt 0:00:03]} Rb5 {[%emt 0:00:31]} 50. Nd5 $1 {[%emt 0:01:06]} Re5 {[%emt 0:00:08]} 51. Nf6+ {[%emt 0:00:25]} Kf7 {[%emt 0:01:18]} (51... Kg7 $5 52. Nd7 $8 Rf5 $11 (52... Rd5 53. Nxc5 Rbxc5 54. Rxc5 $11)) 52. Nd7 {[%emt 0:00:02]} Rd5 {[%emt 0:00:08]} 53. Nxc5 $1 {[%emt 0:00:03]} Rbxc5 {[%emt 0:00:51]} 54. Rxc5 {[%emt 0:00:04]} Rxc5 {[%emt 0:00:01]} 55. Rxb2 {[%emt 0:00:03]} Ke6 {[%emt 0:00:35]} 56. Kf1 {[%emt 0:01:21]} d3 {[%emt 0:01:54]} 57. Ke1 {[%emt 0:00:10]} Re5+ {[%emt 0:00:07]} 58. Kd1 {[%emt 0:00:03]} 1/2-1/2

[Event "Baku Open 2024"]
[Site "Baku"]
[Date "2024.07.06"]
[Round "8.8"]
[White "Shuvalova, Polina"]
[Black "Ibrahimli, Murad"]
[Result "1/2-1/2"]
[ECO "B33"]
[WhiteElo "2467"]
[BlackElo "2400"]
[Annotator "TA"]
[PlyCount "95"]
[EventDate "2024.06.29"]
[EventType "swiss"]
[EventCountry "AZE"]
[SourceTitle "playchess.com"]
[Source "ChessBase"]
[SourceQuality "1"]
[TimeControl "5400+30"]

{[%evp 18,95,60,24,47,50,56,51,60,58,64,55,62,45,52,56,42,15,0,7,6,0,0,0,0,0,7,15,16,6,22,5,7,0,29,19,14,18,30,26,28,13,34,13,41,24,21,11,28,0,0,0,35,38,33,34,32,40,42,11,15,8,0,0,13,0,0,-67,-66,-65,0,0,0,0,8,0,0,0,0,0]} 1. e4 {[%emt 0:00:03]} c5 {[%emt 0:02:39]} 2. Nf3 {[%emt 0:00:05]} Nc6 {[%emt 0:00:05]} 3. d4 {[%emt 0:00:24]} cxd4 {[%emt 0:00:16]} 4. Nxd4 {[%emt 0:00:05]} Nf6 {[%emt 0:01:11]} 5. Nc3 {[%emt 0:00:06]} e5 {[%emt 0:01:17]} 6. Ndb5 {[%emt 0:00:17]} d6 {[%emt 0:00:06]} 7. Bg5 {[%emt 0:00:13]} a6 {[%emt 0:00:13]} 8. Na3 {[%emt 0:00:18]} Be6 {[%emt 0:03:11]} 9. Nc4 {[%emt 0:01:33] B33: Sicilian: Pelikan and Sveshnikov Variations.} Rb8 {[%emt 0:00:12]} 10. a4 {[%emt 0:06:04]} Be7 {[%emt 0:08:53]} 11. Bxf6 {[%emt 0:01:27]} Bxf6 {[%emt 0:00:35]} 12. Nxd6+ {[%emt 0:04:04]} Kf8 {[%emt 0:05:38]} 13. Nc4 {[%emt 0:23:01]} Qd4 {[%emt 0:08:30]} 14. Qxd4 {[%emt 0:06:55]} exd4 {[%emt 0:00:21]} 15. Nd5 $146 {[%emt 0:01:43]} ({Predecessor:} 15. Nb1 Nb4 16. Nba3 Rc8 17. O-O-O Rc5 18. Kb1 g5 19. e5 Bxe5 20. Nxe5 Rxe5 21. Bc4 Bxc4 22. Nxc4 {½-½ Efroimski,M (2434)-Orian,N (2052) ISR-ch op Acre 2024 (3)}) 15... Bxd5 $1 {[%emt 0:02:23]} 16. exd5 {[%emt 0:00:06]} Nb4 {[%emt 0:00:05]} 17. Bd3 {[%emt 0:02:20]} Nxd5 {[%emt 0:04:11]} 18. a5 {[%emt 0:03:16]} g6 {[%emt 0:04:10]} 19. Ke2 {[%emt 0:02:34]} Kg7 {[%emt 0:00:53]} 20. Kf3 {[%emt 0:00:05]} Rhc8 {[%emt 0:02:57]} 21. Rhe1 {[%emt 0:03:51]} Rc6 {[%emt 0:13:00]} 22. Ra4 {[%emt 0:02:54]} Rd8 {[%emt 0:12:28]} 23. g3 {[%emt 0:00:26]} Kf8 {[%emt 0:03:16]} 24. h4 {[%emt 0:03:22]} Be7 {[%emt 0:05:39]} 25. Re2 {[%emt 0:05:32]} Nc7 {[%emt 0:11:16]} 26. Kg2 {[%emt 0:02:27]} Ne6 {[%emt 0:00:31]} 27. Ne5 {[%emt 0:01:01]} Rc7 {[%emt 0:00:43]} 28. Rc4 {[%emt 0:01:50]} Bd6 {[%emt 0:00:44]} 29. f4 {[%emt 0:02:08]} Kg7 {[%emt 0:03:09]} 30. Kf3 {[%emt 0:01:22]} Rdc8 {[%emt 0:00:37]} 31. b3 {[%emt 0:01:42]} Re8 {[%emt 0:00:49]} 32. h5 {[%emt 0:04:45]} (32. Kg2 {simplifies} Kf8 33. Rxc7 Bxc7 34. Nd7+) 32... gxh5 {[%emt 0:01:03]} 33. Rh2 {[%emt 0:04:10]} (33. Rxc7 $5 Bxc7 34. Rh2 Ng5+ (34... Bxa5 35. Rxh5 Nc5 36. Bxh7 $16) 35. Kf2 $14) 33... Bxe5 {[%emt 0:04:42]} 34. fxe5 {[%emt 0:00:47]} Rd7 {[%emt 0:00:54]} 35. Rxh5 {[%emt 0:01:59]} h6 {[%emt 0:00:05]} 36. Rf5 {[%emt 0:06:22]} Rd5 {[%emt 0:00:37]} 37. b4 {[%emt 0:02:13]} Rb5 {[%emt 0:01:05]} 38. Ke4 {[%emt 0:01:47]} b6 {[%emt 0:00:19]} 39. Rc6 {[%emt 0:02:30]} Rxb4 {[%emt 0:00:07]} 40. axb6 {[%emt 0:01:12]} (40. Bxa6 $2 Nc5+ (40... bxa5 41. Bc4 $11) 41. Rxc5 bxc5 $19) 40... Rb8 {[%emt 0:01:03]} 41. Bxa6 {[%emt 0:02:25]} (41. Bc4 {simplifies} R8xb6 42. Rxb6 Rxb6 43. Bxe6 fxe6 44. Rf6) 41... d3+ $1 {[%emt 0:00:11]} 42. c4 {[%emt 0:00:29]} (42. Kxd3 $11 Nd4 43. Rxf7+ Kxf7 44. Bc4+ (44. Rxh6 $2 Ne6 $19) 44... Ke8 45. Rxh6 (45. Kxd4 R4xb6 46. Rc7 R6b7 $11) 45... R8xb6 46. Rxb6 (46. Rh8+ Ke7 $11) 46... Rxb6 47. Kxd4) 42... d2 $15 {[%emt 0:00:43]} (42... R4xb6 43. Rxb6 Rxb6 44. Bb5 $11) 43. Rf1 {[%emt 0:00:05]} R8xb6 {[%emt 0:00:24]} ({Reject} 43... R4xb6 44. Rxb6 Rxb6 45. Bb5 $11) (43... Rd8 $1 $15 44. Rd6 (44. Rd1 $2 Ng5+ 45. Ke3 Rb3+ 46. Ke2 Ne4 $19) 44... Rxd6 (44... Nc5+ 45. Kd4 $11) 45. exd6 Rxb6) 44. Rxb6 $11 {[%emt 0:00:07]} Rxb6 {[%emt 0:00:08]} 45. Bb5 {[%emt 0:00:06]} Nc7 {[%emt 0:00:31]} 46. Rd1 {[%emt 0:00:28]} Nxb5 {[%emt 0:00:07]} 47. cxb5 {[%emt 0:00:04]} Rxb5 {[%emt 0:00:05]} 48. Rxd2 {[%emt 0:00:03]} 1/2-1/2

[Event "Baku Open 2024"]
[Site "Baku"]
[Date "2024.07.06"]
[Round "8.9"]
[White "Ahmadzada, Ahmad"]
[Black "Talibov, Shiroghlan"]
[Result "1-0"]
[ECO "B50"]
[WhiteElo "2481"]
[BlackElo "2361"]
[Annotator "TA"]
[PlyCount "131"]
[EventDate "2024.06.29"]
[EventType "swiss"]
[EventCountry "AZE"]
[SourceTitle "playchess.com"]
[Source "ChessBase"]
[SourceQuality "1"]
[TimeControl "5400+30"]

{[%evp 13,131,-2,-1,-7,0,0,0,0,0,0,0,0,47,43,47,45,52,45,65,14,104,68,85,74,104,106,102,76,75,69,79,75,86,66,77,59,73,59,61,7,8,8,9,8,117,117,135,132,120,109,109,79,133,106,124,119,167,150,178,147,132,133,164,158,160,158,166,145,154,142,147,115,127,107,104,106,113,72,155,129,165,0,143,76,106,104,105,91,133,122,158,56,95,4,6,5,8,8,8,0,33,0,153,162,208,185,624,479,723,708,5522,5522,4421,1875,29974,29975,29991,29992,29992,29993]} 1. e4 {[%emt 0:00:06]} c5 {[%emt 0:00:05]} 2. Nf3 {[%emt 0:00:09]} d6 {[%emt 0:00:05]} 3. c3 {[%emt 0:02:30]} Nf6 {[%emt 0:00:09]} 4. h3 {[%emt 0:00:11]} g6 {[%emt 0:01:12]} 5. Bd3 {[%emt 0:00:33]} Bg7 {[%emt 0:00:09]} 6. O-O {[%emt 0:00:28]} O-O {[%emt 0:00:19]} 7. Bc2 {[%emt 0:00:10]} e5 {[%emt 0:00:21]} 8. d4 {[%emt 0:01:33]} cxd4 {[%emt 0:05:11]} 9. cxd4 {[%emt 0:00:07]} exd4 {[%emt 0:13:29]} 10. Nxd4 {[%emt 0:00:30] The position is equal.} d5 {[%emt 0:01:43]} 11. e5 {[%emt 0:05:40]} Ne4 {[%emt 0:00:11] Inhibits Bg5.} 12. Bf4 {[%emt 0:01:27]} Qb6 {[%emt 0:12:35]} (12... Nd7 $11) 13. Nc3 $14 {[%emt 0:02:59]} Nxc3 {[%emt 0:07:18]} 14. bxc3 {[%emt 0:00:08]} Nc6 {[%emt 0:00:31]} 15. Re1 {[%emt 0:02:24]} Re8 {[%emt 0:08:01][%cal Rc6e5]} 16. Be3 {[%emt 0:05:18]} (16. Rb1 $14 Qc5 17. Ba4) 16... Nxd4 {[%emt 0:03:47]} (16... Nxe5 17. Nf5 Qc6 18. Nxg7 Kxg7 19. h4) (16... Rxe5 $6 17. Nf3 Qa5 18. Nxe5 Bxe5 19. Bd2 $16) (16... Bxe5 $11 17. Nf3 Qd8) 17. cxd4 {[%emt 0:01:22]} Be6 {[%emt 0:00:32]} 18. f4 {[%emt 0:01:38]} f5 {[%emt 0:00:58]} 19. Rb1 {[%emt 0:09:38]} Qc7 {[%emt 0:00:15]} 20. g4 {[%emt 0:00:57]} Qf7 {[%emt 0:06:37]} 21. gxf5 {[%emt 0:07:54]} gxf5 {[%emt 0:02:09]} 22. Kh2 {[%emt 0:00:47]} Kh8 {[%emt 0:00:17]} 23. Rg1 {[%emt 0:00:06]} Bh6 {[%emt 0:00:04]} 24. Qe1 {[%emt 0:02:32]} Qe7 {[%emt 0:03:33]} 25. Qe2 {[%emt 0:04:55]} Qh4 {[%emt 0:03:00] Against Qh5} 26. Qf2 {[%emt 0:04:20]} (26. Qf3 $14) 26... Qxf2+ $11 {[%emt 0:11:45]} 27. Bxf2 {[%emt 0:00:07]} Rec8 $1 {[%emt 0:00:01]} 28. Bd3 {[%emt 0:02:34]} Rc7 {[%emt 0:00:33]} (28... Rc3 $11 {keeps the balance.} 29. Bh4 Rf8 (29... Rxd3 30. Bf6+) (29... Bxf4+ $2 30. Kh1 $18)) 29. Bh4 $1 $36 {[%emt 0:02:09][%mdl 2048] White is on the roll.} Rg8 {[%emt 0:01:35]} (29... Bxf4+ $2 30. Kh1 Rf8 31. Bf6+ Rxf6 32. exf6 $18) 30. Bf6+ {[%emt 0:02:24]} Bg7 {[%emt 0:00:10]} 31. Bg5 {[%emt 0:00:37] White is much more active.} Rc3 {[%emt 0:05:40]} 32. Rgd1 {[%emt 0:21:01]} Rc7 {[%emt 0:01:38]} (32... b6 $142) 33. Rd2 {[%emt 0:01:08]} h6 {[%emt 0:01:14]} 34. Bh4 {[%emt 0:00:11]} Bf8 {[%emt 0:02:01]} (34... b6 $16 35. a4 h5) 35. Bd8 {[%emt 0:00:24]} Rf7 {[%emt 0:01:48]} 36. Bf6+ {[%emt 0:00:56]} Bg7 {[%emt 0:00:30]} 37. Bh4 {[%emt 0:00:07]} Rc7 {[%emt 0:02:00]} 38. a4 {[%emt 0:03:50]} b6 {[%emt 0:03:32][%cal Bb7b6,Bb6a5][%mdl 32] [#]} 39. a5 $1 {[%emt 0:01:49][%mdl 512]} bxa5 {[%emt 0:00:04]} 40. Ra2 {[%emt 0:00:31]} Rc3 {[%emt 0:01:12]} 41. Rd1 {[%emt 0:00:27]} Rb8 {[%emt 0:01:18]} 42. Be1 {[%emt 0:00:29]} Rc7 {[%emt 0:01:22]} 43. Rxa5 {[%emt 0:03:24]} Bf8 {[%emt 0:00:34]} 44. Ra6 {[%emt 0:03:28]} Rb2+ {[%emt 0:01:29]} 45. Kg1 {[%emt 0:01:40]} Rb6 {[%emt 0:01:14]} ({Black should try} 45... Bc8 46. Raa1 Rb3) 46. Rda1 {[%emt 0:00:46]} Rb3 {[%emt 0:01:19]} 47. Rd1 {[%emt 0:03:21]} (47. Rxa7 $2 Rxa7 48. Rxa7 Rxd3 $19) 47... Rb6 {[%emt 0:00:00] [#]} 48. Ra4 {[%emt 0:00:35]} (48. Rxb6 $142 $1 axb6 49. Rb1) 48... Rg7+ {[%emt 0:00:00]} 49. Kf1 {[%emt 0:00:29]} Rgb7 {[%emt 0:00:55]} 50. Ra2 {[%emt 0:03:24]} Bb4 {[%emt 0:00:15]} 51. Bh4 {[%emt 0:01:13]} Bc3 {[%emt 0:00:25]} 52. Bf6+ {[%emt 0:00:18]} (52. Bd8 $16 Rb4 53. Ra6) 52... Kh7 $14 {[%emt 0:00:15] [#]} 53. Be2 {[%emt 0:00:43]} (53. Bd8 $1 $16 {[%cal Rd8b6]} Rb4 54. Ra6) 53... Rb1 $11 {[%emt 0:00:19]} 54. Ra6 {[%emt 0:00:28]} Rxd1+ {[%emt 0:01:19]} 55. Bxd1 {[%emt 0:00:03]} Bd7 {[%emt 0:00:00] Strongly threatening ...Bb5+.} 56. Rd6 {[%emt 0:00:47][%cal Od6d7] Hoping for Rxd7+!} Bb5+ {[%emt 0:00:59]} 57. Kg2 {[%emt 0:00:17] And now Bc2 would win.} Rd7 $2 {[%emt 0:00:23]} (57... Be8 $1 $11 58. Re6 (58. Rxd5 $2 {perishes.} Bc6 $19) 58... Rb2+ 59. Kh1 Bf7) 58. Re6 {[%emt 0:00:41]} Bd3 {[%emt 0:00:38] Against Bc2} (58... Rf7 $142) 59. Rc6 {[%emt 0:00:34]} Bb4 {[%emt 0:00:29]} (59... Be4+ 60. Kf1 Bd3+ 61. Kf2 (61. Be2 Bxe2+ 62. Kxe2 Bb4 $16) 61... Bxd4+ 62. Kg3 Rf7) 60. Bh5 {[%emt 0:00:28] Black must now prevent Rc8.} Be4+ {[%emt 0:00:30]} (60... Bf8 $142 61. Rc8 Bg7) 61. Kf2 $18 {[%emt 0:00:11]} Bf8 {[%emt 0:00:31]} 62. Rc8 {[%emt 0:00:59]} Bg7 {[%emt 0:00:30]} 63. e6 {[%emt 0:00:24] Threatening mate with e7.} Rb7 {[%emt 0:00:30]} 64. e7 {[%emt 0:00:36] White mates.} Bxf6 {[%emt 0:00:17]} 65. e8=Q {[%emt 0:00:14][%csl Gc8][%cal Re8g8]} ({Stronger than} 65. e8=R Bxd4+ 66. Ke2 Rb2+ 67. Kd1 Rb1+ 68. Rc1 Rxc1+ 69. Kxc1 Be3+ 70. Kd1 Kg7 $15) 65... Bxd4+ {[%emt 0:00:17]} 66. Ke1 {[%emt 0:00:17] Weighted Error Value: White=0.26 (precise) /Black=0.42.  Mistake:       	White=5     	Black=10     Inaccurate:     	White=3     	Black=5      OK:         	White=14    	Black=20     Best:        	White=1     	Black=3      Strong:       	White=1     	Black=1} 1-0